Cogmind - Beta 16 @@@ ROGUE MODE // 2026.02.02 @ 04:26:58 Player: Shay Result: Destroyed by X-67 Chaingunner via exploding Neutrino Reactor Performance ------------- Evolutions (3) 1500 Regions Visited (5) 1000 Robots Destroyed (50) 250 Value Destroyed (1210) 1210 Prototype IDs (8) 160 Alien Tech Used (0) 0 Bonus (0) 0 TOTAL SCORE: 4120 Bonus ------- None Cogmind --------- Core Integrity 0/700 Matter 295/300 Energy 100/100 System Corruption 5% Temperature Cool (0) Movement Core (200) Ox3 Location -7/Factory Parts ------- > --- POWER (1) -------- (None) > --- PROPULSION (4) --- (None) > --- UTILITY (5) ------ Medium Storage Unit Improved Melee Analysis Suite Core Analyzer > --- WEAPON (3) ------- (None) > --- INVENTORY (10) --- Deuterium Engine Compact Matter Pod (150) Advanced Visual Processing Unit Core Analyzer Powered Armor Sensor Drone Bay (20/20) Field Laser Powered Hammer Powered Hammer Peak State ------------ > --- POWER ------------ Deuterium Engine > --- PROPULSION ------- Armored Huge Wheel Armored Huge Wheel > --- UTILITY ---------- Medium Storage Unit Improved Melee Analysis Suite Core Analyzer Force Booster Improved Light Armor Plating > --- WEAPON ----------- Field Laser Flak Gun Power Maul > --- INVENTORY -------- Deuterium Engine Compact Wheel Compact Matter Pod Advanced Visual Processing Unit Core Analyzer Powered Armor Sensor Drone Bay Field Laser Powered Hammer Powered Hammer [Rating: 49] Favorites ----------- Power Light Ion Engine Engine Light Ion Engine Power Core Light Nuclear Core Propulsion Armored Wheel Treads Armored Treads Leg Aluminum Leg Wheel Armored Wheel Utility Force Booster Device Force Booster Storage Medium Storage Unit Processor Core Analyzer Hackware Hacking Suite Protection Hardened Light Armor Plating Weapon Heavy Mace Energy Gun Pulse Rifle Energy Cannon Advanced Beam Cannon Ballistic Gun Assault Rifle Ballistic Cannon Assault Cannon Impact Weapon Heavy Mace Build | -11 -10 -9 -9 -8 -7 ------- Run | Yrd Mat Mat Min Mat Fac Slots Evolved 6 | . . 2 . 2 2 Power . | . . . . . . Propulsion 2 | . . 1 . 1 . Utility 3 | . . 1 . 1 1 Weapon 1 | . . . . . 1 Parts Attached 54 | 6 2 14 2 6 24 Power 4 | 1 . 1 . . 2 Engine 3 | 1 . 1 . . 1 Core 1 | . . . . . 1 Reactor . | . . . . . . Propulsion 17 | 2 . 5 . 1 9 Treads 3 | . . . . . 3 Leg 4 | 2 . 2 . . . Wheel 10 | . . 3 . 1 6 Hover . | . . . . . . Flight . | . . . . . . Utility 16 | 1 1 2 2 3 7 Device 4 | . . 1 1 . 2 Storage 3 | 1 . 1 1 . . Processor 4 | . . . . 1 3 Hackware 1 | . . . . 1 . Protection 4 | . 1 . . 1 2 Artifact . | . . . . . . Weapon 17 | 2 1 6 . 2 6 Energy Gun 5 | . . . . 2 3 Energy Cannon 3 | . . 3 . . . Ballistic Gun 4 | 2 . 1 . . 1 Ballistic Cannon 1 | . . . . . 1 Launcher . | . . . . . . Special Weapon . | . . . . . . Impact Weapon 4 | . 1 2 . . 1 Slashing Weapon . | . . . . . . Piercing Weapon . | . . . . . . Special Melee Weapon . | . . . . . . Unidentified Prototypes 3 | . . 1 1 1 . Corrupted Parts 1 | . . . . . 1 System Corruption 3 | . . . . . 3 Parts Lost 18 | . . 1 . 1 16 Power 3 | . . 1 . . 2 Propulsion 5 | . . . . . 5 Utility 5 | . . . . 1 4 Weapon 5 | . . . . . 5 Highest Loss Streak 8 | . . 1 . 1 8 To Critical Strikes . | . . . . . . Average Backups 8 | 1 5 7 7 8 9 Power . | . 1 . . . . Propulsion . | . . . 1 . 1 Utility 4 | . 1 4 3 5 5 Weapon 2 | . 3 2 3 2 1 Tool/Special . | . . . . . . Unused Backups 27 | . . 11 2 . 14 Power 2 | . . . . . 2 Propulsion . | . . . . . . Utility 12 | . . 3 1 . 8 Weapon 13 | . . 8 1 . 4 Tool/Special . | . . . . . . Average Slot Usage (%) 88 | . 86 91 100 90 85 Engine 7 | . 14 10 11 9 2 Leg 8 | . 27 14 . . . Wheel 18 | . . 11 33 34 22 Device 7 | . . 10 11 1 9 Storage 9 | . 14 11 11 9 7 Processor 5 | . . . . 4 13 Protection 7 | . 5 11 11 8 4 Energy Gun 3 | . . . . 5 7 Energy Cannon 1 | . . 7 . . . Ballistic Gun 5 | . 17 4 11 3 . Ballistic Cannon 1 | . . . . . 4 Impact Weapon 8 | . 5 10 11 9 7 Peak Build Rating 49 | 6 10 19 25 27 49 Average Rating 24 | 4 7 16 19 23 37 On Entrance 13 | . 6 10 19 20 27 Avg Prop Armor Cover (%) 2 | . . . . . 2 Naked Turns . | . . . . . . Heaviest Build 44 | 12 18 26 25 34 44 Greatest Support 60 | 20 20 36 36 48 60 Greatest Overweight (x) 3 | 1 3 1 . . 1 Average Overweight (x) . | . . . . . . Largest Inventory Capacity 20 | 8 8 20 10 10 10 Average Capacity 9 | 7 8 8 8 10 10 Most Carried 10 | 2 8 8 8 10 10 Average Carried 8 | 1 5 7 7 8 9 Final Capacity 10 | 8 8 8 10 10 10 Final Carried 10 | 2 8 8 8 10 9 Class Distribution -------------------- 100% | Mutant Dominant Class ---------------- Mutant | -10/Materials Mutant | -9/Materials Mutant | -9/Mines Mutant | -8/Materials Mutant | -7/Factory Resources | -11 -10 -9 -9 -8 -7 ----------- Run | Yrd Mat Mat Min Mat Fac Matter Collected 1032 | 243 50 418 42 50 229 Remotely . | . . . . . . Salvage Created 1610 | . 50 514 73 143 830 Parts 53 | . 4 22 1 4 22 Haulers Intercepted 1 | . . . . 1 . Recyclers Shooed 5 | . . 1 1 1 2 Parts Field Recycled . | . . . . . . Retrieved Matter . | . . . . . . Parts Self-Destructed . | . . . . . . Prevented . | . . . . . . Parts Restored . | . . . . . . Kills | -11 -10 -9 -9 -8 -7 ------- Run | Yrd Mat Mat Min Mat Fac Combat Hostiles Destroyed 25 | . . 9 . 2 14 Melee 10 | . . 4 . 1 5 Guns 1 | . . . . . 1 Classes Destroyed 12 | . 1 6 1 2 2 Worker 9 | . . 2 3 1 3 Builder 6 | . . 2 . . 4 Tunneler 3 | . . . 2 1 . Hauler 1 | . . . . 1 . Recycler 3 | . . 1 . . 2 Watcher 3 | . 2 1 . . . Swarmer 4 | . . . . 1 3 Grunt 7 | . . 3 . . 4 Brawler 1 | . . 1 . . . Duelist 1 | . . . . . 1 Sentry 9 | . . 5 . 1 3 Programmer 3 | . . . . . 3 Best Kill Streak 3 | . 1 2 3 2 3 Combat Bots Only 3 | . . 2 . 1 3 Max Kills in Single Turn 2 | . 1 1 1 1 2 Gunslinging . | . . . . . . Exploded . | . . . . . . Melee 1 | . . 1 . 1 1 Uniques/NPCs Destroyed . | . . . . . . Combat | -11 -10 -9 -9 -8 -7 -------- Run | Yrd Mat Mat Min Mat Fac Hostile Shots Fired 416 | . . 51 . 19 346 Missed 149 | . . 16 . 7 126 Hits 267 | . . 35 . 12 220 Melee 11 | . . 5 . . 6 Projectile 256 | . . 30 . 12 214 AOE 5 | . . . . . 5 Critical Strikes 6 | . . . . . 6 Damage Taken 4176 | . . 572 . 142 3462 Core 857 | . . 148 . 8 701 Absorbed by Shields . | . . . . . . Core Remaining (%) 90 | 100 100 . 63 98 . Volleys Fired 16 | . 7 5 . 1 3 Largest 2 | . 2 1 . 1 2 Hottest 100 | . 40 68 . 63 100 Shots Fired 22 | . 8 7 . 1 6 Gun 15 | . 8 3 . 1 3 Cannon 7 | . . 4 . . 3 Launcher . | . . . . . . Special . | . . . . . . Kinetic 14 | . 8 3 . . 3 Thermal 7 | . . 4 . 1 2 Explosive . | . . . . . . Electromagnetic 1 | . . . . . 1 Robot Hit Streak 2 | . 2 2 . . 2 Robot Miss Streak 4 | . 2 4 . 1 1 Penetration Max . | . . . . . . Secondary Targets . | . . . . . . Shots Hit Robots 117 | . 6 34 6 8 63 Core Hits 24 | . 2 6 2 1 13 Critical Kills 2 | . . 2 . . . Critical Parts Destroyed 14 | . 1 5 . 2 6 Critical Strikes 18 | . 1 8 . 2 7 Burn 1 | . . . . . 1 Smash 17 | . 1 8 . 2 6 Melee Attacks 138 | . 3 39 6 12 78 Impact 138 | . 3 39 6 12 78 Slashing . | . . . . . . Piercing . | . . . . . . Sneak Attacks 22 | . 1 5 5 2 9 Combat Hostiles . | . . . . . . Follow-up Attacks . | . . . . . . Damage Inflicted 6034 | . 174 1486 533 336 3505 Guns 114 | . 37 19 . . 58 Cannons 24 | . . 24 . . . Explosions . | . . . . . . Melee 5896 | . 137 1443 533 336 3447 Ramming . | . . . . . . Kinetic 56 | . 37 19 . . . Thermal 58 | . . 24 . . 34 Explosive . | . . . . . . Electromagnetic 24 | . . . . . 24 Impact 5896 | . 137 1443 533 336 3447 Slashing . | . . . . . . Piercing . | . . . . . . Highest Corruption 5 | . . 5 5 . 5 Average Corruption 4 | . . 5 5 . 2 Corruption Purged . | . . . . . . Corruption Blocked . | . . . . . . Effects 18 | . . 15 3 . . Message Errors 1 | . . 1 . . . Matter Fused 4 | . . 2 2 . . Heat Flow Errors 3 | . . 3 . . . Energy Discharges 3 | . . 3 . . . Data Loss (minor) 2 | . . 1 1 . . Data Loss (major) 3 | . . 3 . . . Misfires 2 | . . 2 . . . Overload Shots . | . . . . . . Overflow Damage 1826 | . 68 403 156 158 1041 Projectiles 41 | . . . . . 41 Explosions . | . . . . . . Melee 1785 | . 68 403 156 158 1000 Knockbacks 26 | . . 2 2 . 22 Impact 23 | . . 2 2 . 19 Kinetic . | . . . . . . Secondary 3 | . . . . . 3 Self-Inflicted Damage . | . . . . . . Shots . | . . . . . . Rammed . | . . . . . . Targets Rammed . | . . . . . . Kicked . | . . . . . . Crushed . | . . . . . . Highest Temperature 474 | . . 249 . 474 55 Average Temperature 127 | . . 112 . 202 16 Received Heat Transfer 771 | . . 129 . 9 633 Effects 2 | . . . . 2 . Shutdowns 1 | . . . . 1 . Damage (minor) 1 | . . . . 1 . Siege Activations . | . . . . . . Martial Activations . | . . . . . . Shielding Activations . | . . . . . . Robots Disrupted . | . . . . . . Combat Hostiles . | . . . . . . Robots Corrupted 26 | . 1 8 2 3 12 Combat Hostiles 14 | . . 5 . 1 8 Parts Fried 35 | . 1 11 3 7 13 Impact Corruptions 71 | . 2 16 5 6 42 Robots Melted . | . . . . . . Combat Hostiles . | . . . . . . Parts Melted 3 | . . . . . 3 Heat Transferred 185 | . . 37 . . 148 Parts Sabotaged . | . . . . . . Parts Stolen . | . . . . . . Parts Stripped . | . . . . . . Power Chain Reactions . | . . . . . . Alert | -11 -10 -9 -9 -8 -7 ------- Run | Yrd Mat Mat Min Mat Fac Maximum Alert Level . | . . . . . . Low Security (%) 100 | 100 100 100 100 100 100 Level 1 . | . . . . . . Level 2 . | . . . . . . Level 3 . | . . . . . . Level 4 . | . . . . . . Level 5 . | . . . . . . High Security . | . . . . . . Max Security . | . . . . . . Peak Influence 141 | . 7 76 15 30 141 Initial 6 | . . 2 6 . 3 Average 19 | . . 15 2 5 35 Influence Increases 928 | . 14 289 25 71 529 Destroy 0b10 Robot/C 500 | . . 180 . 40 280 Destroy 0b10 Robot/NC 125 | . 10 30 25 15 45 Destroy Leader 158 | . 4 62 . 12 80 Successful Hack 21 | . . . . 4 17 Destroy Structure 4 | . . 2 . . 2 Lose Combat Pursuer 120 | . . 15 . . 105 Influence Decreases 871 | . 7 279 42 62 481 Entered New Map 22 | . . 5 11 . 6 Time Decay 698 | . 7 264 31 60 336 Lost Part 151 | . . 10 . 2 139 Squads Dispatched 10 | . 2 1 . 1 6 Investigation 3 | . . . . 1 2 Extermination 4 | . . . . . 4 Reinforcement 3 | . 2 1 . . . Assault . | . . . . . . Garrison . | . . . . . . Intercept . | . . . . . . Searches Triggered . | . . . . . . Construction Impeded . | . . . . . . Haulers Reinforced . | . . . . . . Active Scanning Responses . | . . . . . . Cargo Convoy Interrupts 1 | . . . . . 1 Stealth | -11 -10 -9 -9 -8 -7 --------- Run | Yrd Mat Mat Min Mat Fac Distress Signals 6 | . . 2 . 2 2 Communications Jammed . | . . . . . . Distress Signals . | . . . . . . Times Spotted 68 | . 4 16 . 8 40 Peak Tracking Total 12 | . 1 3 . 4 12 Tactical Retreats 6 | . . 1 . . 5 Traps | -11 -10 -9 -9 -8 -7 ------- Run | Yrd Mat Mat Min Mat Fac Traps Triggered 4 | . 1 . . . 3 Indirectly . | . . . . . . Trap Hack Attempts . | . . . . . . Triggered . | . . . . . . Disarmed . | . . . . . . Reprogrammed . | . . . . . . Reused . | . . . . . . Traps Extracted . | . . . . . . Installed . | . . . . . . Triggered . | . . . . . . Machines | -11 -10 -9 -9 -8 -7 ---------- Run | Yrd Mat Mat Min Mat Fac Machines Disabled . | . . . . . . Max in Single Turn . | . . . . . . Machines Repaired . | . . . . . . Machines Dismantled . | . . . . . . Machines Sabotaged . | . . . . . . Overloaded Fab Kills . | . . . . . . Hacking | -11 -10 -9 -9 -8 -7 --------- Run | Yrd Mat Mat Min Mat Fac Machines Accessed 9 | . 1 1 1 2 4 Terminals 5 | . 1 1 . 1 2 Fabricators 1 | . . . . . 1 Repair Stations . | . . . . . . Recycling Units . | . . . . . . Scanalyzers 1 | . . . . . 1 Garrison Access 1 | . . . . 1 . Total Hacks 15 | . 1 1 1 4 8 Successful 10 | . 1 . 1 2 6 Failed 5 | . . 1 . 2 2 Catastrophic . | . . . . . . Database Lockouts . | . . . . . . Manual . | . . . . . . Terminals 9 | . 1 1 . 2 5 Fabricators 1 | . . . . . 1 Repair Stations . | . . . . . . Recycling Units . | . . . . . . Scanalyzers 2 | . . . . . 2 Garrison Access 2 | . . . . 2 . Terminal Hacks 8 | . 1 . 1 2 4 Record 3 | . . . . 1 2 Robot Analysis 1 | . 1 . . . . Prototype ID Bank 3 | . . . . 1 2 Open Door 1 | . . . 1 . . Fabricator Hacks 1 | . . . . . 1 Build 1 | . . . . . 1 Repair Station Hacks . | . . . . . . Recycling Unit Hacks . | . . . . . . Scanalyzer 1 | . . . . . 1 Insert Component 1 | . . . . . 1 Garrison Access Hacks . | . . . . . . Unauthorized Hacks . | . . . . . . Terminals . | . . . . . . Fabricators . | . . . . . . Repair Stations . | . . . . . . Recycling Units . | . . . . . . Scanalyzers . | . . . . . . Garrison Access . | . . . . . . Data Cores Recovered . | . . . . . . Used . | . . . . . . Hacking Detections 6 | . 1 1 . 2 2 Full Trace Events 2 | . . . . 1 1 Feedback Events . | . . . . . . Feedback Blocked . | . . . . . . Robot Schematics Acquired . | . . . . . . Robots Built . | . . . . . . Authchips . | . . . . . . Time . | . . . . . . Total Robot Build Rating . | . . . . . . Part Schematics Acquired . | . . . . . . Parts Built 2 | . . . . . 2 Authchips . | . . . . . . Time 58 | . . . . . 58 Total Part Build Rating 14 | . . . . . 14 Part Studies Acquired . | . . . . . . Parts Repaired . | . . . . . . Time . | . . . . . . Parts Recycled . | . . . . . . Recycled Matter . | . . . . . . Retrieved Matter . | . . . . . . Retrieved Components . | . . . . . . Parts Scanalyzed . | . . . . . . Part Schematics Acquired . | . . . . . . Parts Damaged . | . . . . . . Bothacking | -11 -10 -9 -9 -8 -7 ------------ Run | Yrd Mat Mat Min Mat Fac Used RIF Installer . | . . . . . . Robots Hacked . | . . . . . . Non-combat . | . . . . . . Combat . | . . . . . . Robot Hacks Applied . | . . . . . . Relay Couplers Released . | . . . . . . Fabnet Peak Effective % . | . . . . . . Robots Rewired . | . . . . . . Allies Hacked . | . . . . . . Hacks Repelled . | . . . . . . Allies | -11 -10 -9 -9 -8 -7 -------- Run | Yrd Mat Mat Min Mat Fac Total Allies . | . . . . . . Largest Group . | . . . . . . Highest-Rated Group . | . . . . . . Highest-Rated Ally . | . . . . . . Total Orders . | . . . . . . Ally Attacks . | . . . . . . Total Damage . | . . . . . . Kills . | . . . . . . Allies Corrupted . | . . . . . . Allies Melted . | . . . . . . Intel | -11 -10 -9 -9 -8 -7 ------- Run | Yrd Mat Mat Min Mat Fac Active Infowar (turns) 1274 | . . 964 230 45 35 Optics 35 | . . . . . 35 Sensors 1239 | . . 964 230 45 . Robot Analysis Total 1 | . 1 . . . . Derelict Logs Recovered 1 | . . . 1 . . Drone Launches . | . . . . . . Drone Recoveries . | . . . . . . Exploration | -11 -10 -9 -9 -8 -7 ------------- Run | Yrd Mat Mat Min Mat Fac Turns Passed 3627 | 67 518 992 230 389 1431 Spaces Moved 2418 | 48 305 524 222 334 985 Core 4 | 3 1 . . . . Treads 66 | . . . . . 66 Legs 556 | 45 304 207 . . . Wheels 1792 | . . 317 222 334 919 Hover . | . . . . . . Flight . | . . . . . . Fastest Speed 50 | 50 120 90 90 90 80 Average Speed 106 | 118 120 121 90 90 101 Slowest Speed 250 | 190 200 190 90 90 250 Overloaded Moves . | . . . . . . Propulsion Burnouts . | . . . . . . Robots Hopped . | . . . . . . Potential Cave-ins . | . . . . . . Cave-ins Triggered . | . . . . . . Exploration Rate (%) 31 | 4 41 38 57 22 28 Regions Visited 5 Branch Regions 1 Pre-discovered Areas 1 | . . . 1 . . Known Exits Taken 1 | . . . . 1 . Unknown Exits Taken 4 | 1 1 1 1 . . Scrap Searched 2 | . . . 2 . . Spaces Dug . | . . . . . . Terrain Destroyed 1 | . . 1 . . . Melee . | . . . . . . Projectile 1 | . . 1 . . . AOE . | . . . . . . Terrain Rammed . | . . . . . . Walls Destroyed . | . . . . . . Machines Disabled . | . . . . . . Actions | -11 -10 -9 -9 -8 -7 --------- Run | Yrd Mat Mat Min Mat Fac Total 3214 | 55 440 807 242 400 1270 Wait 483 | . 116 186 4 38 139 Move 2413 | 47 304 523 221 333 985 Hop . | . . . . . . Pick Up 50 | 2 6 15 4 6 17 Fast Attach 35 | 6 4 9 . 2 14 Attach 14 | . . 2 . 3 9 Detach 3 | . . 1 . . 2 Swap 11 | . . 6 3 1 1 Drop 51 | . . 21 4 4 22 Fire 16 | . 7 5 . 1 3 Melee 138 | . 3 39 6 12 78 Ram . | . . . . . . Kick . | . . . . . . Crush . | . . . . . . Escape Stasis . | . . . . . . Rewire . | . . . . . . Trap . | . . . . . . Miscellaneous . | . . . . . . Route ------- -11/Scrapyard -10/Materials -9/Materials -9/Mines -8/Materials (discovered 2 exits: *Fac x2) -7/Factory (discovered 1 exit: [*Fac]) History --------- Turn | Location | Event 21 | -11/Scrapyard | Discovered new exit (range 15) 68 | -11/Scrapyard | Entered Materials 309 | -10/Materials | Build established: Mutant 576 | -10/Materials | Discovered new exit (range 4) 586 | -10/Materials | Entered another Materials area 586 | -9/Materials | Evolved 2 slots: Propulsion x1, Utility x1 1385 | -9/Materials | Discovered new exit (range 9) 1578 | -9/Materials | Entered Mines 1624 | -9/Mines | Learned location of 2 exits from Materials 1644 | -9/Mines | Found the Drone Emporium 1652 | -9/Mines | Found Prototype Device 1653 | -9/Mines | Identified Sensor Drone Bay 1680 | -9/Mines | Learned location of Storage (-9) 1790 | -9/Mines | Discovered new exit (range 14) 1808 | -9/Mines | Entered Materials 1808 | -8/Materials | Evolved 2 slots: Propulsion x1, Utility x1 1809 | -8/Materials | Identified exit to Factory 2197 | -8/Materials | Entered Factory 2197 | -7/Factory | Evolved 2 slots: Utility x1, Weapon x1 2245 | -7/Factory | Discovered new exit (range 12) 2391 | -7/Factory | Lost 3 parts (1p1n1u) 2808 | -7/Factory | Found Powered Armor 2841 | -7/Factory | Fabricated Imp. Gyrokinetic Inverter (x2) 3612 | -7/Factory | Cargo convoy interrupted 3616 | -7/Factory | Core integrity fell below 50% 3624 | -7/Factory | Core integrity fell below 20% 3628 | -7/Factory | Destroyed by X-67 Chaingunner via exploding Neutrino Reactor Last Messages --------------- Force Booster destroyed. Slug penetrates P-60 Hacker. U-05 Engineer lays Concrete. Penetrated by Slug. U-05 Engineer lays Concrete. Arm. Huge Wheel destroyed. Integrated Corrupted Wheel (+3). Complication: Power Maul rejected. Neutrino Reactor explodes. Door malfunctions. U-05 Engineer lays Concrete. P-60 Hacker resets X-67 Chaingunner, system corruption cleaned. U-05 Engineer lays Concrete. P-60 Hacker resets L-41 Fighter, system corruption cleaned. U-05 Engineer lays Concrete. Wheel destroyed. U-05 Engineer lays Concrete. Neutrino Reactor explodes. Map ----- +----------------------------------------------------+ | ?????????????????????????????????????????????????? | | ?????????????????????????????????????????????????? | | ?????????????????????????????????????????????????? | | ?????????????????????????????????????????????????? | | ?????????????????????????????????????????????????? | | ?????????????????????????????????????????????????? | | ?????????????????????????????????????????????????? | | ?????????????????????????????????????????????????? | | ?????????????????????????????????????????????????? | | ?????????????????????????????????????????????????? | | ?????????????????????????????????????????????????? | | ?????????????????????????????????????????????????? | | ?????????????????????????????????????????????????? | | ?????????????????????????????????????????????????? | | ?????###########################?????????????????? | | ?????# # #?????????????????? | | ?????# # #?????????????????? | | ?????# # #?????????????????? | | ?????# # ]]] #?????????????????? | | ???###! # ]]] #?????????????????? | | ???# " ] ]] #?????????????????? | | ???# " #?????????????????? | | ???# l/ #?????????????????? | | ???# p ! #?????????????????? | | ??## #?????????????????? | | ??# p x @ #?????????????????? | | ??# h #?????????????????? | | ??## " ####/#######????????????????? | | ???# upp xi ???????????????? | | ???##### u% ???????????????? | | ???????# " ??????????????? | | ???????# ??????????????? | | ???????# ??????????????? | | ???????# #####+##########????????????????????? | | ???????# # ! % % #??????????????????????? | | ???????# # #??????????????????????? | | ???????# # """""" #??????????????????????? | | ???????# # """""" #??????????????????????? | | ???????# # """""" #??????????????????????? | | ???????# # """""" #??????????????????????? | | ???????# # #??????????????#???????? | | ???????# # """""" #?????????????## ???##?? | | ???????# # """""" #????????????? ? #?? | | ???????+? # """""" ! #?????????????? """ #?? | | ??????????? ?# """""" #?????????????? """ #?? | | ?????????????# #??????????????? """ #?? | | ???????#?????####/#########??????????????? #?? | | ???????# ?????# #?########???????????????! #?# | | ???????# ####%### #???????????????! # # | | ???????# = # [ ]#???????????????? ? # | +----------------------------------------------------+ Best States ------------- Heat Dissipation 34 Energy Generation 14 Energy Capacity 275 Matter Stores 300 Matter Capacity 300 Sight Range 20 Robot Scan Range 15 Terrain Scan Density 10 Armor Coverage 600 Evasion (%) 55 Targeting Accuracy 5 Melee Accuracy 6 Core Analysis 6 Recoil Reduction 3 Force Boost 20 Offensive Hacking 10 Item Schematics ----------------- None Robot Schematics ------------------ None Fabricated ------------ Imp. Gyrokinetic Inverter | x2 | -7/Factory | Preloaded Repaired ---------- Nothing Studied --------- None Alien Tech Used ----------------- None Achievements -------------- Jackpot Just What I Needed Loot Pinata One Hack Too Far Power Corrupts Challenges ------------ None Game ------ Seed SurgePowerExtractor Manual? 0 Play Time 00:42:54 Cumulative 3.4 hours Start 2026.02.02 @ 03:33:42 End 2026.02.02 @ 04:26:58 Sessions 1 Manual Loads 0 Difficulty Rogue Special Mode None Game No. 7 Rogue 7 Adventurer 0 Explorer 0 Win Type - Total 0 Types 0/0/0/0/0/0/0/0/0/0 Lore% 4 Gallery% 11 Achievement% 10 Wizard Run 0 Options --------- Layout 2 ASCII 0 Keyboard 0 Movement Numpad Keybinds 0 Fullscreen 1 Font 24/Smallcaps Map View 50x44 Zoom Use 0% Tactical HUD 0 Map Filters NONE Filters NONE Steam 0 RUN: dc49fc65-dc7d-4940-841e-123b8adda3a8